bitfinex-derivatives/quotes_SOLF0:USTF0_20250131
["timestamp","ask_amount","ask_price","bid_price","bid_amount"]
[1738337551015,7.26e-05,240.19,240.18,4.1631]
[1738337555114,7.26e-05,240.19,240.15,0.02826279]
[1738337555719,7.26e-05,240.19,240.17,4.1632]
[1738337555919,7.26e-05,240.19,240.15,0.02826279]
[1738337556316,7.26e-05,240.19,240.17,4.1633]
[1738337557018,7.26e-05,240.19,240.16,4.1635]
[1738337557316,7.26e-05,240.19,240.15,0.02826279]
[1738337557521,7.26e-05,240.19,240.17,4.1632]
[1738337558130,7.26e-05,240.19,240.15,4.19176279]
[1738337558820,7.26e-05,240.19,240.15,0.02826279]
[1738337562022,4.1635,240.16,240.15,0.02826279]
[1738337563519,18.06386508,240.19,240.01,4.2287]
[1738337563823,0.76461342,240.18,240.01,4.2287]
[1738337564018,18.06379248,240.15,240.01,4.2287]
[1738337564223,4.165,240.08,240.04,4.1655]
[1738337564425,18.06379248,240.15,240.01,2.8219]
[1738337564724,0.03071241,240.1,240.06,0.02864849]
[1738337565818,4.19541241,240.1,240.06,0.02864849]
[1738337566124,0.03071241,240.1,240.06,0.02864849]
[1738337566424,4.1647,240.09,240.06,0.02864849]
[1738337566624,0.03071241,240.1,240.06,0.02864849]
[1738337566823,4.165,240.07,240.06,0.02864849]
[1738337568819,4.1661,240.01,239.92,2.7645]
[1738337569019,4.1661,240.01,239.97,4.1668]
[1738337569419,4.1663,240.0,239.96,4.1669]
[1738337569728,18.06379248,240.07,239.92,2.7645]
[1738337569920,0.03010617,240.0,239.96,0.0275558]
[1738337570120,18.06379248,239.99,239.84,2.8074]
[1738337570924,4.1675,239.93,239.84,2.8074]
[1738337571125,18.06379248,239.99,239.84,2.8074]
[1738337571326,0.03010659,239.91,239.86,0.03131247]
[1738337572329,0.03010659,239.91,239.9,4.168]
[1738337572531,6.59e-06,239.91,239.9,4.168]
[1738337574831,1.3695,240.09,239.88,18.06379248]
[1738337575024,1.3695,240.09,239.93,18.06379248]
[1738337575225,1.3695,240.09,239.94,1.3317]
[1738337575633,1.3695,240.09,239.95,2.6684]
[1738337576031,0.02952089,240.04,240.0,0.03105043]
[1738337576241,0.02952089,240.04,240.03,4.1657]
[1738337577140,2.089e-05,240.04,240.03,4.1657]
[1738337580639,2.089e-05,240.04,240.0,0.03105043]
[1738337581841,2.089e-05,240.04,240.03,4.1657]
[1738337584839,2.089e-05,240.04,240.0,0.03105043]
[1738337585240,4.16572089,240.04,240.0,0.03105043]
[1738337585449,2.089e-05,240.04,240.03,4.1657]
[1738337586846,2.089e-05,240.04,240.0,0.03105043]
[1738337587349,2.089e-05,240.04,240.0,4.19725043]
[1738337587650,2.089e-05,240.04,240.0,0.03105043]
[1738337588045,4.16562089,240.04,240.0,0.03105043]
[1738337588446,2.089e-05,240.04,240.0,0.03105043]
[1738337590956,2.089e-05,240.04,240.0,4.19725043]
[1738337591249,2.089e-05,240.04,240.0,0.03105043]
[1738337592145,2.089e-05,240.04,240.0,4.19725043]
[1738337592350,4.16562089,240.04,240.0,4.19725043]
[1738337592553,2.089e-05,240.04,240.0,0.03105043]
[1738337592754,2.089e-05,240.04,240.03,4.1657]
[1738337593848,2.089e-05,240.04,240.02,4.1658]
[1738337594249,2.089e-05,240.04,240.0,0.03105043]
[1738337594854,4.1661,240.01,240.0,0.03105043]
[1738337596253,4.1669,239.97,239.87,1.4003]
[1738337596761,29.23257254,240.03,239.87,1.4003]
[1738337597352,0.0318746,239.97,239.91,4.1677]
[1738337597560,0.0318746,239.97,239.93,0.03075637]
[1738337599460,4.1986746,239.97,239.93,0.03075637]
[1738337599760,0.0318746,239.97,239.93,0.03075637]
[1738337599958,4.1672,239.95,239.93,0.03075637]
[1738337600362,0.0318746,239.97,239.93,0.03075637]
[1738337600552,4.1673,239.94,239.93,0.03075637]
[1738337604453,4.168,239.9,239.81,1.4503]
[1738337604655,30.60687254,239.95,239.81,1.4503]
[1738337605459,4.1676,239.93,239.81,1.4503]
[1738337605756,0.03116396,239.9,239.86,0.02794742]
[1738337605962,0.03116396,239.9,239.87,4.1683]
[1738337606261,0.03116396,239.9,239.86,0.02794742]
[1738337606560,0.03116396,239.9,239.89,4.1682]
[1738337608059,0.03116396,239.9,239.87,1.4555]
[1738337608060,18.01329095,240.03,239.87,1.4555]
[1738337608264,17.22109753,240.04,239.89,18.01329095]
[1738337608567,35.23438848,240.07,239.89,18.01329095]
[1738337608767,4.1659,240.02,239.94,4.1672]
[1738337609068,35.23438848,240.07,239.89,18.01329095]
[1738337609265,0.03169563,240.0,239.96,0.02920627]
[1738337610059,17.22109753,240.07,239.96,0.02920627]
[1738337610060,17.22109753,240.07,240.05,4.1653]
[1738337610368,17.22109753,240.13,239.97,19.38679095]
[1738337610667,17.22109753,240.13,240.07,4.165]
[1738337610863,17.22109753,240.13,239.97,19.38679095]
[1738337611071,21.38509753,240.13,240.05,4.1652]
[1738337611268,0.03185971,240.07,240.03,0.02854607]
[1738337612068,0.03185971,240.07,240.03,4.19424607]
[1738337612265,0.03185971,240.07,240.03,0.02854607]
[1738337613781,0.03185971,240.07,240.05,4.1652]
[1738337614173,5.971e-05,240.07,240.05,4.1652]
[1738337616173,4.1624,240.22,240.05,18.01329095]
[1738337616370,45.92292676,240.26,240.05,18.01329095]
[1738337616871,45.92292676,240.26,240.09,18.01329095]
[1738337617173,45.92292676,240.26,240.1,2.8382]
[1738337617372,18.01329095,240.22,240.15,0.02628054]
[1738337617772,63.93621771,240.26,240.15,0.02628054]
[1738337618172,18.01329095,240.26,240.15,0.02628054]
[1738337618472,5.537,240.28,240.15,0.02628054]
[1738337618976,5.537,240.28,240.22,4.1624]
[1738337619373,1.3756,240.28,240.23,0.02831828]
[1738337619576,20.06109753,240.34,240.23,0.02831828]
[1738337619770,0.76414709,240.33,240.23,0.02831828]
[1738337620173,4.1615,240.28,240.23,0.02831828]
[1738337620374,4.2811,240.34,240.23,0.02831828]
[1738337620675,0.76415103,240.33,240.23,0.02831828]
[1738337621272,4.161,240.3,240.23,0.02831828]
[1738337621575,4.2811,240.34,240.23,0.02831828]
[1738337621776,4.1618,240.26,240.23,0.02831828]
[1738337622881,4.1621,240.24,240.23,0.02831828]
[1738337623077,18.01329095,240.32,240.23,0.02831828]
[1738337623478,4.162,240.25,240.23,0.02831828]
[1738337623680,18.01329095,240.32,240.23,0.02831828]
[1738337623880,0.76418146,240.31,240.23,0.02831828]
[1738337624081,4.1619,240.25,240.23,0.02831828]
[1738337624378,4.2811,240.34,240.23,0.02831828]
[1738337624379,18.01329095,240.28,240.23,0.02831828]
[1738337624771,18.01329095,240.28,240.15,4.1636]
[1738337624972,18.01329095,240.24,240.1,1.4533]
[1738337625577,18.01329095,240.28,240.1,1.4533]
[1738337625783,18.01329095,240.32,240.1,19.46659095]
[1738337625978,4.1621,240.24,240.19,4.1628]
[1738337626385,0.02860456,240.24,240.17,0.02932797]
[1738337627381,0.02860456,240.24,240.23,4.1623]
[1738337627977,4.56e-06,240.24,240.23,4.1623]
[1738337629988,2.7569,240.41,240.33,4.1604]
[1738337630287,0.76390879,240.4,240.24,1.4012]
[1738337630481,18.01329095,240.46,240.35,4.1601]
[1738337630681,0.76384832,240.45,240.35,4.1601]
[1738337630983,4.1591,240.41,240.38,0.03161052]
[1738337631180,18.01329095,240.46,240.38,0.03161052]
[1738337631380,0.76384612,240.45,240.37,0.02799605]
[1738337632484,18.01329095,240.42,240.37,0.02799605]
[1738337632786,4.85334612,240.41,240.37,0.02799605]
[1738337632982,0.76384612,240.4,240.37,0.02799605]
[1738337633182,4.0895,240.45,240.37,0.02799605]
[1738337633382,0.76382387,240.44,240.37,0.02799605]
[1738337633583,4.159,240.42,240.37,0.02799605]
[1738337633885,4.0895,240.45,240.37,0.02799605]
[1738337634085,0.76379522,240.44,240.37,0.02799605]
[1738337635586,4.1597,240.38,240.37,0.02799605]
[1738337635886,4.0895,240.45,240.24,1.4012]
[1738337636087,18.01329095,240.39,240.25,4.1618]
[1738337636778,4.1602,240.35,240.25,4.1618]
[1738337636982,18.01329095,240.39,240.25,4.1618]
[1738337637285,0.02921046,240.32,240.28,0.02726667]
[1738337638082,4.18991046,240.32,240.28,0.02726667]
[1738337638282,0.02921046,240.32,240.28,0.02726667]
[1738337638689,0.02921046,240.32,240.28,4.18866667]
[1738337639189,4.1609,240.31,240.28,0.02726667]
[1738337639487,0.02921046,240.32,240.28,0.02726667]
[1738337640490,4.1612,240.3,240.28,0.02726667]
[1738337640686,0.02921046,240.32,240.28,0.02726667]
[1738337641192,18.01329095,240.31,240.11,18.01329095]
[1738337641385,0.76413997,240.3,240.11,18.01329095]
[1738337641691,0.76413997,240.3,240.07,19.38529095]
[1738337641692,18.01329095,240.27,240.07,19.38529095]
[1738337641987,18.01329095,240.27,240.08,1.4256]
[1738337642189,0.0315041,240.19,240.15,0.02748019]
[1738337642791,0.0315041,240.19,240.18,4.1631]
[1738337645291,0.0315041,240.19,240.15,0.02748019]
[1738337645985,0.0315041,240.19,240.16,4.1632]
[1738337646207,0.0315041,240.19,240.15,0.02748019]
[1738337646584,18.04479505,240.19,239.99,18.01329095]
[1738337646785,2.8181,240.18,239.95,18.01329095]
[1738337646983,4.1643,240.11,240.06,4.165]
[1738337647185,18.01329095,240.15,240.06,4.165]
[1738337647490,4.1643,240.11,240.06,4.165]
[1738337647794,0.02954751,240.11,240.06,0.02881547]
[1738337647995,4.19374751,240.11,240.06,0.02881547]
[1738337648189,0.02954751,240.11,240.1,4.1644]
[1738337648992,0.02954751,240.11,240.06,0.02881547]
[1738337649694,0.02954751,240.11,240.1,4.1644]
[1738337649993,2.8,240.25,240.06,0.02881547]
[1738337650190,4.1627,240.2,240.14,4.1635]
[1738337650395,4.1627,240.2,240.07,18.01329095]
[1738337650594,1.3225,240.24,240.07,18.01329095]
[1738337651093,18.01329095,240.23,240.05,2.8437]
[1738337651284,0.0287303,240.18,240.13,0.02833628]
[1738337652094,2.6870303,240.18,240.13,0.02833628]
[1738337652590,4.1637,240.14,240.13,0.02833628]
[1738337652787,2.6870303,240.18,240.13,0.02833628]
[1738337652991,1.3679303,240.18,240.13,0.02833628]
[1738337653296,1.3679303,240.18,240.0,18.01329095]
[1738337653493,1.3392,240.18,240.0,18.01329095]
[1738337653891,4.1639,240.13,240.09,4.1645]
[1738337654194,1.3225,240.24,240.09,18.01329095]
[1738337654391,0.76451889,240.23,240.13,18.01329095]
[1738337654594,0.02888129,240.19,240.14,0.02959293]
[1738337655296,0.02888129,240.19,240.18,4.1629]
[1738337656392,0.02888129,240.19,240.14,0.02959293]
[1738337656393,17.22109753,240.27,240.26,4.1615]
[1738337656598,2.8,240.37,240.26,4.1615]
[1738337656896,0.76400208,240.36,240.26,4.1615]
[1738337657096,2.8,240.37,240.26,4.1615]
[1738337657300,0.76403156,240.36,240.26,4.1615]
[1738337657489,18.01329095,240.28,240.09,18.01329095]
[1738337657696,18.01329095,240.24,240.05,18.01329095]
[1738337657993,0.02844256,240.17,240.16,0.03076392]
[1738337658192,0.02844256,240.17,240.02,1.3858]
[1738337658399,18.01329095,240.2,240.02,1.3858]
[1738337658595,0.76403156,240.19,240.02,1.3858]
[1738337659401,0.02668976,240.13,240.08,0.03054714]
[1738337659799,4.1641,240.12,240.08,0.03054714]
[1738337660001,0.02668976,240.13,240.08,0.03054714]
[1738337660496,4.1641,240.12,240.08,0.03054714]
[1738337660701,0.02668976,240.13,240.08,0.03054714]
[1738337661703,0.02668976,240.13,240.09,18.01329095]
[1738337661905,0.02668976,240.13,240.11,4.164]
[1738337662502,0.02668976,240.13,240.08,0.03054714]
[1738337663104,4.1641,240.12,240.08,0.03054714]
[1738337663304,0.02668976,240.13,240.08,0.03054714]
[1738337663704,4.164,240.12,240.08,0.03054714]
[1738337663899,0.02668976,240.13,240.08,0.03054714]
[1738337664303,4.1641,240.12,240.08,0.03054714]
[1738337664805,0.02668976,240.13,240.08,0.03054714]
[1738337664806,0.02668976,240.13,240.1,4.1643]
[1738337665005,8.976e-05,240.13,240.08,0.03054714]
[1738337665398,8.976e-05,240.13,240.12,4.164]
[1738337666813,8.976e-05,240.13,240.08,0.03054714]
[1738337667002,8.976e-05,240.13,240.12,4.164]
[1738337667200,4.1617,240.26,240.09,18.01329095]
[1738337667404,4.1617,240.26,240.14,18.01329095]
[1738337667909,1.3497,240.29,240.2,4.1624]
[1738337668113,1.3497,240.29,240.14,18.01329095]
[1738337668312,0.03051813,240.24,240.19,0.03097182]
[1738337668708,0.03051813,240.24,240.19,4.19377182]
[1738337668709,4.19241813,240.24,240.19,4.19377182]
[1738337668908,0.03051813,240.24,240.19,0.03097182]
[1738337669711,4.1601,240.35,240.22,29.20489063]
[1738337670009,1.3629,240.38,240.22,29.20489063]
[1738337670010,1.3629,240.38,240.23,2.801]
[1738337670204,1.3629,240.38,240.23,1.4008]
[1738337670409,1.3629,240.38,240.18,29.20489063]
[1738337670611,29.20489063,240.36,240.18,29.20489063]
[1738337670808,4.1613,240.28,240.26,0.02977593]
[1738337672607,4.1613,240.28,240.26,7.593e-05]
[1738337673505,0.03149283,240.3,240.26,7.593e-05]
[1738337673908,4.1612,240.28,240.26,7.593e-05]
[1738337674307,0.03149283,240.3,240.26,7.593e-05]
[1738337675011,0.03149283,240.3,240.27,4.1614]
[1738337675215,0.03149283,240.3,240.26,7.593e-05]
[1738337676108,4.1613,240.28,240.26,7.593e-05]
[1738337677203,2.19908039,240.27,240.26,7.593e-05]
[1738337677404,3.55238039,240.27,240.26,7.593e-05]
[1738337678110,1.4348,240.27,240.26,7.593e-05]
[1738337678708,2.19911236,240.27,240.26,7.593e-05]
[1738337679915,2.1991874,240.27,240.26,7.593e-05]
[1738337681121,0.7643874,240.27,240.26,7.593e-05]
[1738337681419,4.1613,240.28,240.26,7.593e-05]
[1738337681811,0.76426304,240.27,240.26,7.593e-05]
[1738337682115,4.1613,240.28,240.26,7.593e-05]
[1738337682321,0.76428849,240.27,240.26,7.593e-05]
[1738337682819,4.1634,240.16,240.07,1.3184]
[1738337683011,29.20489063,240.24,240.07,1.3184]
[1738337683214,3.04,240.25,240.07,1.3184]
[1738337683612,3.04,240.25,240.1,29.20489063]
[1738337684021,0.0290952,240.2,240.15,0.03093462]
[1738337684219,0.0290952,240.2,240.15,4.19433462]
[1738337684520,4.1633,240.16,240.15,0.03093462]
[1738337685718,0.0290952,240.2,240.15,29.23582525]
[1738337685921,0.76429982,240.31,240.16,2.717]
[1738337686724,17.22109753,240.25,240.16,2.717]
[1738337686919,17.22109753,240.25,240.21,0.02865041]
[1738337687320,17.22109753,240.25,240.21,4.19115041]
[1738337687523,17.22109753,240.25,240.21,0.02865041]
[1738337689127,4.1930134,240.26,240.21,0.02865041]
[1738337689331,0.0314134,240.26,240.21,0.02865041]
[1738337689721,0.0314134,240.26,240.22,17.96921457]
[1738337690328,0.0314134,240.26,240.25,4.1618]
[1738337691022,0.0314134,240.26,240.22,1.4294]
[1738337691530,0.0314134,240.26,240.21,0.02865041]
[1738337692030,4.1623,240.22,240.21,0.02865041]
[1738337693529,4.1622,240.23,240.21,0.02865041]
[1738337694351,4.1624,240.22,240.21,0.02865041]
[1738337695325,0.0314134,240.26,240.21,0.02865041]
[1738337696033,4.1624,240.22,240.21,0.02865041]
[1738337698036,4.1622,240.23,240.21,0.02865041]
[1738337698231,0.0314134,240.26,240.21,0.02865041]
[1738337698735,4.1932134,240.26,240.21,4.19115041]
[1738337698936,0.0314134,240.26,240.21,0.02865041]
[1738337699834,12.16482269,240.3,240.21,1.47895041]
[1738337701338,12.16482269,240.3,240.26,4.1616]
[1738337701550,29.38592022,240.39,240.21,1.47895041]
[1738337701735,0.76399112,240.38,240.21,1.47895041]
[1738337702039,0.76399112,240.38,240.27,0.02657193]
[1738337702440,4.1613,240.29,240.27,0.02657193]
[1738337702635,17.96921457,240.36,240.27,0.02657193]
[1738337702836,17.96921457,240.32,240.27,0.02657193]
[1738337703135,0.76412238,240.31,240.27,0.02657193]
[1738337703335,4.1614,240.28,240.27,0.02657193]
[1738337704734,17.96921457,240.28,240.06,17.96921457]
[1738337704929,4.4143,240.31,240.02,1.4414]
[1738337704930,17.96921457,240.24,240.07,1.4294]
[1738337705141,0.76428353,240.23,240.11,4.1643]
[1738337705739,4.1635,240.16,240.11,4.1643]
[1738337705941,0.03178613,240.19,240.15,0.03065988]
[1738337706238,0.76433977,240.3,240.1,17.96921457]
[1738337706431,0.02880334,240.19,240.18,4.1631]
[1738337706836,0.02623893,240.21,240.18,4.1631]
[1738337707035,0.02623893,240.21,240.16,0.02643796]
[1738337707244,17.96921457,240.28,240.07,1.4294]
[1738337707434,0.03088385,240.21,240.16,0.03086478]
[1738337707639,4.1633,240.17,240.16,0.03086478]
[1738337707934,0.03088385,240.21,240.16,0.03086478]
[1738337708838,0.03088385,240.21,240.03,1.4522]
[1738337708839,17.96921457,240.2,240.03,1.4522]
[1738337709042,17.96921457,240.16,240.03,1.4522]
[1738337709234,20.96921457,240.16,240.03,1.4522]
[1738337709430,4.1644,240.11,240.03,1.4522]
[1738337709640,20.96921457,240.16,240.03,1.4522]
[1738337709931,3.0,240.16,240.03,1.4522]
[1738337710138,0.02729458,240.12,240.07,0.02833485]
[1738337710338,0.02729458,240.12,240.1,4.1645]
[1738337710637,0.02729458,240.12,240.07,0.02833485]
[1738337711529,0.02729458,240.12,240.09,4.1645]
[1738337711940,0.02729458,240.12,240.07,0.02833485]
[1738337713843,4.1649,240.08,240.07,0.02833485]
[1738337714440,4.166,240.02,239.95,1.4151]
[1738337714635,17.96921457,240.08,239.95,1.4151]
[1738337714843,17.96921457,240.08,239.89,2.7548]
[1738337714844,0.76496645,240.07,239.92,4.1676]
[1738337715046,17.96921457,240.04,239.84,20.72401457]
[1738337715237,3.76496645,240.03,239.84,20.72401457]
[1738337715441,3.0,240.03,239.88,4.1682]
[1738337715643,0.02746014,239.96,239.91,0.02652646]
[1738337716139,4.19446014,239.96,239.91,0.02652646]
[1738337716534,0.02746014,239.96,239.91,0.02652646]
[1738337717343,4.1675,239.93,239.91,0.02652646]
[1738337718346,0.02746014,239.96,239.91,0.02652646]
[1738337718846,4.1673,239.94,239.91,0.02652646]
[1738337719047,0.02746014,239.96,239.91,0.02652646]
[1738337719743,4.1671,239.95,239.91,0.02652646]
[1738337719944,0.02746014,239.96,239.91,0.02652646]
[1738337720149,17.99667471,239.96,239.91,0.02652646]
[1738337720343,4.1675,239.93,239.91,0.02652646]
[1738337720946,17.99667471,239.96,239.78,2.7435]
[1738337721149,4.1677,239.91,239.78,2.7435]
[1738337721447,17.96921457,240.0,239.8,17.96921457]
[1738337721644,4.1665,239.97,239.84,17.96921457]
[1738337721848,3.0,239.99,239.84,17.96921457]
[1738337722352,0.02761371,239.94,239.89,4.19443747]
[1738337722549,0.02761371,239.94,239.89,0.02643747]
[1738337722949,4.1674,239.93,239.89,0.02643747]
[1738337723150,0.02761371,239.94,239.89,0.02643747]
[1738337723546,4.1676,239.92,239.89,0.02643747]
[1738337723848,0.02761371,239.94,239.89,0.02643747]
[1738337724043,4.19491371,239.94,239.89,0.02643747]
[1738337724349,0.02761371,239.94,239.89,0.02643747]
[1738337724748,0.02761371,239.94,239.93,4.1673]
[1738337727354,2.98,240.05,239.92,17.96921457]
[1738337727553,1.3844,240.09,239.99,4.1661]
[1738337727854,3.74486921,240.08,239.99,4.1661]
[1738337728153,2.98,240.08,239.99,4.1661]
[1738337728353,1.3844,240.09,239.92,17.96921457]
[1738337728647,0.03182399,240.06,240.01,0.03069427]
[1738337728853,1.4098,240.15,240.05,4.1652]
[1738337729049,0.76469807,240.14,240.01,0.03175676]
[1738337729253,17.22109753,240.2,240.04,17.96921457]
[1738337729450,0.76453402,240.19,240.04,17.96921457]
[1738337729651,17.22109753,240.2,240.04,17.96921457]
[1738337729845,21.38379753,240.2,240.04,17.96921457]
[1738337730255,2.7905,240.25,240.08,17.96921457]
[1738337730451,0.76437399,240.24,240.08,17.96921457]
[1738337730650,0.02983426,240.14,240.1,0.02711781]
[1738337731154,0.02879389,240.14,240.13,4.1639]
[1738337731350,0.02879389,240.14,240.1,0.02711781]
[1738337731558,4.1639,240.13,240.1,0.02711781]
[1738337731951,0.02879389,240.14,240.1,0.02711781]
[1738337732854,4.19259389,240.14,240.1,0.02711781]
[1738337733357,0.02879389,240.14,240.1,0.02711781]
[1738337736152,4.1642,240.11,240.1,0.02711781]
[1738337737057,4.1649,240.08,240.01,1.3985]
[1738337737259,0.02879389,240.14,240.01,1.3985]
[1738337737454,1.4172,240.15,240.01,1.3985]
[1738337737658,1.3854,240.14,240.01,1.3985]
[1738337737859,1.3854,240.14,240.01,4.1658]
[1738337738060,4.165,240.07,239.96,17.96921457]
[1738337738353,0.03056928,240.1,240.05,0.02978721]
[1738337738572,2.98,240.11,240.03,4.1656]
[1738337738760,0.02810532,240.1,240.05,0.02818137]
[1738337739659,0.02810532,240.1,240.09,4.1646]
[1738337740056,4.1626,240.21,240.15,4.1635]
[1738337740253,4.1626,240.21,240.08,17.96921457]
[1738337741058,44.20754011,240.26,240.08,17.96921457]
[1738337741360,0.03010699,240.17,240.12,17.99951744]
[1738337741565,2.7765,240.3,240.13,2.7554]
[1738337741763,72.12630211,240.31,240.13,2.7554]
[1738337741965,0.7641565,240.3,240.13,2.7554]
[1738337742360,17.96921457,240.28,240.13,2.7554]
[1738337742561,0.7641565,240.27,240.13,2.7554]
[1738337742762,0.02806011,240.23,240.18,0.02982782]
[1738337743559,0.02806011,240.23,240.08,17.96921457]
[1738337743770,0.02806011,240.23,240.0,17.96921457]
[1738337743771,17.96921457,240.21,240.0,17.96921457]
[1738337743969,3.57640938,240.2,240.0,17.96921457]
[1738337744267,4.1637,240.14,240.03,4.1655]
[1738337744565,3.0,240.18,240.0,17.96921457]
[1738337744966,0.02798052,240.11,240.06,0.03006927]
[1738337746269,0.02798052,240.11,240.06,4.19496927]
[1738337746670,0.02798052,240.11,240.06,0.03006927]
[1738337747463,0.02798052,240.11,240.07,4.1649]
[1738337747668,0.02798052,240.11,240.06,0.03006927]
[1738337748269,0.02798052,240.11,240.07,4.1649]
[1738337748466,0.02798052,240.11,240.06,0.03006927]
[1738337749269,0.02798052,240.11,240.08,17.96921457]
[1738337749878,0.76439531,240.23,240.08,17.96921457]
[1738337750078,3.0,240.24,240.08,17.96921457]
[1738337750279,0.76438758,240.23,240.08,17.96921457]
[1738337750480,3.0,240.24,240.08,17.96921457]
[1738337750880,5.8259,240.26,240.08,17.96921457]
[1738337751082,4.1633,240.17,240.14,0.03196298]
[1738337751284,0.02836156,240.18,240.14,0.03196298]
[1738337754383,4.1632,240.17,240.14,0.03196298]
[1738337754884,0.02836156,240.18,240.14,0.03196298]
[1738337755689,4.1635,240.15,240.14,0.03196298]
[1738337756589,4.1643,240.11,240.05,5.5784]
[1738337756791,17.96921457,240.2,240.05,1.4133]
[1738337756984,0.76455131,240.19,240.05,1.4133]
[1738337757189,4.1642,240.12,240.05,1.4133]
[1738337757390,4.1642,240.12,240.07,4.1649]
[1738337757592,0.02655434,240.11,240.06,0.02689001]
[1738337757793,0.76453336,240.23,240.06,2.764]
[1738337757988,0.02928698,240.11,240.06,2.79342186]
[1738337758183,0.76453336,240.23,240.06,2.764]
[1738337758387,0.03045134,240.11,240.06,2.79074681]
[1738337758588,0.76453336,240.23,240.06,2.764]
[1738337758791,0.02705046,240.11,240.06,2.79529072]
[1738337758993,17.96921457,240.24,240.06,2.764]
[1738337759195,0.02743605,240.11,240.06,2.79403443]
[1738337759408,17.96921457,240.2,240.06,2.764]
[1738337759590,0.03102964,240.11,240.06,2.79572226]
[1738337759893,0.03102964,240.11,240.06,1.41062226]
[1738337761595,3.0,240.22,240.08,17.96921457]
[1738337761992,4.163,240.19,240.14,4.1637]
[1738337762390,17.22039468,240.23,240.08,17.96921457]
[1738337762595,4.1625,240.22,240.16,4.1634]
[1738337762894,0.02841192,240.18,240.13,0.03094517]
[1738337764292,0.02841192,240.18,240.15,4.1635]
[1738337764497,0.02841192,240.18,240.13,0.03094517]
[1738337764699,4.1638,240.14,240.13,0.03094517]
[1738337765291,0.02841192,240.18,240.13,0.03094517]
[1738337765694,4.1638,240.14,240.13,0.03094517]
[1738337766592,4.1636,240.16,240.13,0.03094517]
[1738337766898,0.02841192,240.18,240.13,0.03094517]
[1738337767099,4.1638,240.14,240.13,0.03094517]
[1738337767794,0.02841192,240.18,240.01,1.443]
[1738337768100,17.22039468,240.19,240.01,1.443]
[1738337768813,35.18960925,240.2,240.01,1.443]
[1738337769000,0.03204423,240.12,240.08,0.02945497]
[1738337769697,0.03204423,240.12,240.11,4.1643]
[1738337770196,0.03204423,240.12,240.08,0.02945497]
[1738337770701,0.03204423,240.12,240.09,4.1646]
[1738337771195,0.03204423,240.12,240.11,4.1643]
[1738337771400,1.4357,240.24,240.08,17.99866954]
[1738337771600,1.4357,240.24,240.09,1.401]
[1738337772001,4.1627,240.21,240.09,1.401]
[1738337772303,1.4357,240.24,240.09,1.401]
[1738337772504,4.1626,240.21,240.15,4.1635]
[1738337772705,0.02919222,240.17,240.13,0.02637221]
[1738337773302,0.02919222,240.17,240.13,4.19017221]
[1738337773506,0.02919222,240.17,240.13,0.02637221]
[1738337775802,0.02919222,240.17,240.14,4.1638]
[1738337776105,0.02919222,240.17,240.13,0.02637221]
[1738337776902,4.1638,240.14,240.13,0.02637221]
[1738337777208,17.99840679,240.17,240.02,1.401]
[1738337777402,2.8983,240.16,240.02,5.5668]
[1738337777804,17.96921457,240.13,240.01,1.443]
[1738337778216,2.8983,240.16,240.01,1.443]
[1738337778510,0.02763938,240.09,240.05,4.19414852]
[1738337778904,4.1631,240.18,240.05,0.02884852]
[1738337779105,4.4557,240.24,240.08,17.96921457]
[1738337779410,17.22039468,240.17,240.08,17.96921457]
[1738337780002,17.22039468,240.17,240.12,17.96921457]
[1738337780203,10.65613418,240.17,240.16,4.1635]
[1738337780606,7.56513418,240.17,240.16,4.1635]
[1738337780810,45.92105249,240.19,240.18,4.1631]
[1738337782012,48.60315249,240.33,240.18,4.1631]
[1738337782206,0.76412507,240.32,240.18,4.1631]
[1738337782412,0.76412507,240.32,240.23,0.03088759]
[1738337782612,51.62315249,240.33,240.23,0.03088759]
[1738337782809,18.73333203,240.32,240.23,0.03088759]
[1738337783010,4.1619,240.25,240.23,0.03088759]
[1738337783210,48.60315249,240.33,240.23,0.03088759]
[1738337783412,4.1616,240.27,240.23,0.03088759]
[1738337783712,48.60315249,240.33,240.23,0.03088759]
[1738337784113,45.92105249,240.33,240.24,17.96921457]
[1738337784714,45.92105249,240.38,240.24,17.96921457]
[1738337785211,45.92105249,240.38,240.29,0.02766099]
[1738337785409,4.161,240.3,240.29,0.02766099]
[1738337786515,17.96921457,240.32,240.17,1.3682]
[1738337786715,17.96921457,240.32,240.12,17.96921457]
[1738337787012,0.76424511,240.31,240.12,17.96921457]
[1738337787214,17.96921457,240.36,240.13,1.3891]
[1738337787415,0.76417943,240.35,240.17,4.1631]
[1738337787819,0.03053475,240.27,240.22,0.03035291]
[1738337788413,0.03053475,240.27,240.23,4.1622]
[1738337788707,0.03053475,240.27,240.24,17.96921457]